Cogmind - Beta 9.6 @@@ ROGUE MODE // 2020.06.07 @ 16:41:11 Player: mecharm Result: Destroyed by G-34 Mercenary with Small Laser Performance ------------- Evolutions (1) 500 Regions Visited (2) 400 Robots Destroyed (17) 85 Value Destroyed (334) 334 Prototype IDs (0) 0 Alien Tech Used (0) 0 Bonus (0) 0 TOTAL SCORE: 1319 Bonus ------- None Cogmind --------- Core Integrity 0/400 Matter 113/300 Energy 125/125 System Corruption 1% Temperature Cool (6) Movement Treading (180) Ox1 Location -9/Materials Parts ------- > --- POWER (1) -------- Light Ion Engine > --- PROPULSION (3) --- Light Treads > --- UTILITY (3) ------ Small Storage Unit Medium Storage Unit Utility Shielding > --- WEAPON (2) ------- Heavy Assault Rifle Grenade Launcher > --- INVENTORY (10) --- Improved Ion Engine Aluminum Leg Aluminum Leg Improved Targeting Computer Power Shielding Power Shielding Light Assault Rifle Light Assault Rifle Light Assault Rifle Peak State ------------ > --- POWER ------------ Improved Ion Engine > --- PROPULSION ------- Light Treads Light Treads > --- UTILITY ---------- Small Storage Unit Medium Storage Unit Light Armor Plating > --- WEAPON ----------- Beam Rifle Heavy Assault Rifle > --- INVENTORY -------- Light Ion Engine Improved Ion Engine Improved Targeting Computer Power Shielding Power Shielding Utility Shielding Light Assault Rifle Light Assault Rifle [Rating: 12] Favorites ----------- Power Ion Engine Engine Ion Engine Propulsion Light Treads Treads Light Treads Leg Aluminum Leg Utility Small Storage Unit Storage Small Storage Unit Protection Utility Shielding Weapon Light Assault Rifle Energy Gun Beam Rifle Ballistic Gun Light Assault Rifle Launcher Grenade Launcher Build | -11 -10 -9 ------- Run | Scr Mat Mat Slots Evolved 2 | . . 2 Power . | . . . Propulsion 1 | . . 1 Utility 1 | . . 1 Weapon . | . . . Parts Attached 22 | 6 3 13 Power 4 | 1 1 2 Engine 4 | 1 1 2 Core . | . . . Reactor . | . . . Propulsion 4 | 2 . 2 Treads 2 | . . 2 Leg 2 | 2 . . Wheel . | . . . Hover . | . . . Flight . | . . . Utility 5 | 1 1 3 Device . | . . . Storage 2 | 1 1 . Processor . | . . . Hackware . | . . . Protection 3 | . . 3 Artifact . | . . . Weapon 9 | 2 1 6 Energy Gun 2 | . . 2 Energy Cannon . | . . . Ballistic Gun 5 | 2 1 2 Ballistic Cannon . | . . . Launcher 2 | . . 2 Special Weapon . | . . . Impact Weapon . | . . . Slashing Weapon . | . . . Piercing Weapon . | . . . Special Melee Weapon . | . . . Unidentified Prototypes . | . . . Parts Lost 12 | . 2 10 Power 3 | . 1 2 Propulsion 3 | . . 3 Utility 1 | . . 1 Weapon 5 | . 1 4 Highest Loss Streak 4 | . 2 4 Average Slot Usage (%) 78 | . 99 74 Engine 9 | . 14 8 Treads 9 | . . 11 Leg 7 | . 28 3 Storage 22 | . 27 22 Protection 8 | . . 10 Energy Gun 3 | . . 4 Ballistic Gun 13 | . 28 11 Launcher 2 | . . 3 Naked Turns . | . . . Heaviest Build 28 | 11 19 28 Greatest Support 40 | 20 20 40 Greatest Overweight (x) 5 | 1 . 5 Average Overweight (x) . | . . . Largest Inventory Capacity 10 | 6 10 10 Average Capacity 9 | 5 9 10 Most Carried 10 | 4 9 10 Average Carried 8 | 2 6 9 Final Capacity 10 | 6 10 10 Final Carried 9 | 2 9 9 Class Distribution -------------------- 65% | Mutant 34% | Scavenger-Mutant Dominant Class ---------------- Mutant | -10/Materials Mutant | -9/Materials Resources | -11 -10 -9 ----------- Run | Scr Mat Mat Matter Collected 267 | . 34 233 Remotely . | . . . Salvage Created 371 | . 76 295 Parts 37 | . 10 27 Haulers Intercepted . | . . . Recyclers Shooed . | . . . Parts Field Recycled . | . . . Retrieved Matter . | . . . Parts Self-Destructed . | . . . Prevented . | . . . Kills | -11 -10 -9 ------- Run | Scr Mat Mat Combat Hostiles Destroyed 17 | . 5 12 Melee 1 | . . 1 Guns 15 | . 5 10 AOE 1 | . . 1 Classes Destroyed 3 | . 1 2 Swarmer 12 | . 5 7 Grunt 4 | . . 4 Sentry 1 | . . 1 Best Kill Streak 4 | . 3 4 Combat Bots Only 4 | . 3 4 Max Kills in Single Turn 1 | . 1 1 Gunslinging . | . . . Exploded 1 | . . 1 Melee 1 | . . 1 Uniques/NPCs Destroyed . | . . . Combat | -11 -10 -9 -------- Run | Scr Mat Mat Damage Taken 1714 | . 350 1364 Core 427 | . 27 400 Absorbed by Shields . | . . . Core Remaining (%) 94 | 100 89 . Volleys Fired 53 | . 15 38 Largest 2 | . 2 2 Hottest 79 | . 40 79 Shots Fired 99 | . 30 69 Gun 95 | . 30 65 Cannon . | . . . Launcher 4 | . . 4 Special . | . . . Kinetic 70 | . 30 40 Thermal 25 | . . 25 Explosive 4 | . . 4 Electromagnetic . | . . . Robot Hit Streak 13 | . 4 13 Robot Miss Streak 8 | . 8 3 Penetration Max . | . . . Secondary Targets 4 | . 3 1 Max Gunslinging Chain 1 | . 1 1 Shots Hit Robots 53 | . 12 41 Core Hits 33 | . 6 27 Critical Hits . | . . . Critical Kills . | . . . Critical Parts Destroyed . | . . . Melee Attacks . | . . . Impact . | . . . Slashing . | . . . Piercing . | . . . Sneak Attacks . | . . . Combat Hostiles . | . . . Follow-up Attacks . | . . . Damage Inflicted 828 | . 207 621 Guns 569 | . 108 461 Cannons . | . . . Explosions 226 | . 99 127 Melee . | . . . Ramming 33 | . . 33 Kinetic 349 | . 108 241 Thermal 319 | . 99 220 Explosive 127 | . . 127 Electromagnetic . | . . . Impact . | . . . Slashing . | . . . Piercing . | . . . Highest Corruption 1 | . . 1 Average Corruption 1 | . . 1 Corruption Purged . | . . . Effects 4 | . . 4 Energy Discharges 3 | . . 3 Targeting Errors 1 | . . 1 Overload Shots . | . . . Overflow Damage 68 | . 68 . Projectiles . | . . . Explosions 68 | . 68 . Melee . | . . . Knockbacks . | . . . Impact . | . . . Kinetic . | . . . Secondary . | . . . Self-Inflicted Damage 164 | . 155 9 Shots 2 | . 2 . Rammed 21 | . . 21 Targets Rammed 21 | . . 21 Kicked . | . . . Crushed . | . . . Highest Temperature 210 | . 4 210 Average Temperature 87 | . 4 88 Received Heat Transfer 393 | . . 393 Siege Activations . | . . . Robots Corrupted . | . . . Combat Hostiles . | . . . Parts Fried . | . . . Impact Corruptions . | . . . Robots Melted . | . . . Combat Hostiles . | . . . Parts Melted . | . . . Heat Transferred 594 | . 50 544 Parts Sabotaged . | . . . Parts Stolen . | . . . Parts Stripped . | . . . Power Chain Reactions . | . . . Missiles Intercepted . | . . . Alert | -11 -10 -9 ------- Run | Scr Mat Mat Peak Influence 205 | . 160 205 Average Influence 76 | . 65 82 Maximum Alert Level 1 | . . 1 Low Security (%) 91 | 100 100 89 Level 1 8 | . . 10 Level 2 . | . . . Level 3 . | . . . Level 4 . | . . . Level 5 . | . . . High Security . | . . . Max Security . | . . . Squads Dispatched 1 | . . 1 Investigation . | . . . Extermination . | . . . Reinforcement 1 | . . 1 Assault . | . . . Garrison . | . . . Intercept . | . . . Construction Impeded 1 | . . 1 Haulers Reinforced . | . . . Stealth | -11 -10 -9 --------- Run | Scr Mat Mat Distress Signals 4 | . 2 2 Communications Jammed . | . . . Distress Signals . | . . . Times Spotted 24 | . 7 17 Peak Tracking Total 5 | . 4 5 Tactical Retreats 2 | . 1 1 Traps | -11 -10 -9 ------- Run | Scr Mat Mat Traps Triggered . | . . . Indirectly . | . . . Trap Hack Attempts . | . . . Triggered . | . . . Disarmed . | . . . Reprogrammed . | . . . Reused . | . . . Traps Extracted . | . . . Installed . | . . . Triggered . | . . . Machines | -11 -10 -9 ---------- Run | Scr Mat Mat Machines Disabled 2 | . 2 . Max in Single Turn 2 | . 2 . Machines Sabotaged . | . . . Garrisons Compromised . | . . . Overloaded Fab Kills . | . . . Fab Network Shutdowns . | . . . Hacking | -11 -10 -9 --------- Run | Scr Mat Mat Machines Accessed 2 | . . 2 Terminals 2 | . . 2 Fabricators . | . . . Repair Stations . | . . . Recycling Units . | . . . Scanalyzers . | . . . Garrison Access . | . . . Total Hacks 4 | . . 4 Successful 2 | . . 2 Failed 2 | . . 2 Catastrophic 1 | . . 1 Database Lockouts . | . . . Manual 1 | . . 1 Terminals 4 | . . 4 Fabricators . | . . . Repair Stations . | . . . Recycling Units . | . . . Scanalyzers . | . . . Garrison Access . | . . . Terminal Hacks 2 | . . 2 Emergency Access Points 1 | . . 1 Security Status 1 | . . 1 Fabricator Hacks . | . . . Repair Station Hacks . | . . . Recycling Unit Hacks . | . . . Scanalyzer . | . . . Garrison Access Hacks . | . . . Unauthorized Hacks . | . . . Terminals . | . . . Fabricators . | . . . Repair Stations . | . . . Recycling Units . | . . . Scanalyzers . | . . . Garrison Access . | . . . Data Cores Recovered . | . . . Used . | . . . Hacking Detections 1 | . . 1 Full Trace Events . | . . . Feedback Events . | . . . Feedback Blocked . | . . . Robot Schematics Acquired . | . . . Robots Built . | . . . Matter . | . . . Time . | . . . Total Robot Build Rating . | . . . Part Schematics Acquired . | . . . Parts Built . | . . . Matter . | . . . Time . | . . . Total Part Build Rating . | . . . Parts Repaired . | . . . Time . | . . . Parts Recycled . | . . . Recycled Matter . | . . . Retrieved Matter . | . . . Retrieved Components . | . . . Parts Scanalyzed . | . . . Part Schematics Acquired . | . . . Parts Damaged . | . . . Bothacking | -11 -10 -9 ------------ Run | Scr Mat Mat Used RIF Installer . | . . . Robots Hacked . | . . . Non-combat . | . . . Combat . | . . . Robot Hacks Applied . | . . . Relay Couplers Released . | . . . Robots Rewired . | . . . Allies Hacked . | . . . Hacks Repelled . | . . . Allies | -11 -10 -9 -------- Run | Scr Mat Mat Total Allies . | . . . Largest Group . | . . . Highest-Rated Group . | . . . Highest-Rated Ally . | . . . Total Orders . | . . . Ally Attacks . | . . . Total Damage . | . . . Kills . | . . . Allies Corrupted . | . . . Allies Melted . | . . . Intel | -11 -10 -9 ------- Run | Scr Mat Mat Robot Analysis Total . | . . . Derelict Logs Recovered . | . . . Drone Launches . | . . . Drone Recoveries . | . . . Exploration | -11 -10 -9 ------------- Run | Scr Mat Mat Turns Passed 1020 | 39 156 825 Spaces Moved 493 | 26 84 383 Core 27 | 8 . 19 Treads 249 | . . 249 Legs 217 | 18 84 115 Wheels . | . . . Hover . | . . . Flight . | . . . Fastest Speed 50 | 50 120 120 Average Speed 154 | 100 120 165 Slowest Speed 300 | 150 120 300 Overloaded Moves . | . . . Propulsion Burnouts . | . . . Robots Hopped . | . . . Cave-ins Triggered . | . . . Exploration Rate (%) 19 | 4 22 32 Regions Visited 2 Branch Regions . Pre-discovered Areas . | . . . Known Exits Taken . | . . . Unknown Exits Taken 2 | 1 1 . Scrap Searched . | . . . Spaces Dug . | . . . Terrain Destroyed 69 | . 42 27 Melee . | . . . Projectile . | . . . AOE 69 | . 42 27 Actions | -11 -10 -9 --------- Run | Scr Mat Mat Total 631 | 38 115 478 Wait 11 | . 4 7 Move 491 | 25 83 383 Hop . | . . . Pick Up 30 | 7 10 13 Fast Attach 1 | 1 . . Attach 18 | 5 3 10 Detach . | . . . Swap 3 | . . 3 Drop 3 | . . 3 Fire 53 | . 15 38 Melee . | . . . Ram 19 | . . 19 Kick . | . . . Crush 2 | . . 2 Escape Stasis . | . . . Rewire . | . . . Trap . | . . . Miscellaneous . | . . . Route ------- -11/Scrapyard -10/Materials -9/Materials (discovered 1 exit: [*Mat]) History --------- Turn | Location | Event 8 | -11/Scrapyard | Discovered new exit (range 16) 40 | -11/Scrapyard | Entered Materials 185 | -10/Materials | Discovered new exit (range 9) 196 | -10/Materials | Entered another Materials area 196 | -9/Materials | Evolved 2 slots: Propulsion x1, Utility x1 312 | -9/Materials | Build established: Mutant 427 | -9/Materials | Core integrity fell below 50% 433 | -9/Materials | Lost 3 parts (1n2w) 754 | -9/Materials | Build established: Scavenger-Mutant 758 | -9/Materials | Core integrity fell below 20% 846 | -9/Materials | Lost 4 parts (1p1n1u1w) 1012 | -9/Materials | Discovered new exit (range 5) 1021 | -9/Materials | Destroyed by G-34 Mercenary with Small Laser Last Messages --------------- 00823_ ALERT: Construction progress impeded, dispatching reinforcements to local area. 00828_ Acquired 19 matter. 00831_ K-01 Serf collects debris. 00833_ Acquired 15 matter. 00835_ K-01 Serf collects debris. 00837_ Acquired Lgt. Assault Rifle. 00840_ K-01 Serf collects debris. 00858_ Acquired Grenade Launcher. 00871_ K-01 Serf collects debris. 00905_ U-05 Engineer lays Concrete. 00906_ U-05 Engineer builds a Wall. 00907_ G-34 Mercenary destroyed. 00910_ U-05 Engineer lays Concrete. 00913_ U-05 Engineer builds a Wall. 00917_ U-05 Engineer lays Concrete. 00920_ U-05 Engineer builds a Wall. 00948_ Slammed into T-07 Excavator. 00949_ System corrupted: Energy discharge (-42). 01012_ EXIT=FOUND Map ----- +----------------------------------------------------+ | | | | | | | | | | | | | | | | | | | | | ????????????????????????????????????? | | ????????????????????????????????????? | | ????????????????????????????????????? | | ????????????????????????????????????? | | ????????????????????????????????????? | | ????????????????????????????????????? | | ????????????????????????????????????? | | ????????????????????????????????????? | | ????????????????????????????????????? | | ????????????????????????????????????? | | ????????????????????????????????????? | | ??????????????????????#####?????????? | | ??????????????????????# ##########? | | ??????????????????????# < # #? | | ??????????????????????# #""" #? | | ??????????????????????# @#""" #? | | ??????????????????##### #""" #? | | ??????????????????#== + #? | | ??????????????????#== #""" #? | | ??????????????????#!! g #""" #? | | ??????????????????#!! g#""" #? | | ??????????????????#!! a# #? | | ??????????????????#!! #####+###? | | ??????????????????#### ????# #??? | | ?????????????????????# ????# #??? | | ?????????????????????# ????# #??? | | ?????????????????????# ????# #??? | | ????????????????????? ????# #??? | | ????????????????????? ????# #??? | | ????????????????????? ????# #??? | | ???????????????????????" ????# #??? | | ???????????????????????????????# #??? | | ???????????????????????????????# #??? | | ???????????????????????????????# #??? | | ???????????????????????????????# #??? | | ???????????????????????????????# #??? | | ???????????????????????????????# #??? | | ???????????????????????????????# #??? | | ???????????????????????????????# #??? | | ???????????????????????????????# #??? | +----------------------------------------------------+ Best States ------------- Heat Dissipation 28 Energy Generation 12 Energy Capacity 265 Matter Stores 172 Matter Capacity 300 Sight Range 16 Terrain Scan Density 10 Armor Coverage 150 Utility Shielding 33 Evasion (%) 50 Recoil Reduction 2 Item Schematics ----------------- None Robot Schematics ------------------ None Fabricated ------------ Nothing Alien Tech Used ----------------- None Achievements -------------- Fist Fight Challenges ------------ None Game ------ Seed SpectralSkeletonDoomcannon Manual? 0 Play Time 00:14:19 Cumulative 6.8 hours Start 2020.06.07 @ 16:24:21 End 2020.06.07 @ 16:41:11 Sessions 1 Manual Loads 0 Difficulty Rogue Special Mode None Game No. 5 Rogue 5 Adventurer 0 Explorer 0 Win Type - Total 0 Types 0/0/0/0/0/0/0 Lore% 16 Gallery% 10 Achievement% 12 Wizard Run 0 Options --------- ASCII 0 Keyboard 0 Movement Arrows Keybinds 0 Fullscreen 2 Font 18/SmallcapsGlow Map View 76x50 Tactical HUD 1 Map Filters NONE Filters NONE Steam 1 RUN: 93a26bb4-5bad-416d-9817-6a48ce31b511